bitfinex-derivatives/quotes_ETHF0:USTF0_20210109
["timestamp","ask_amount","ask_price","bid_price","bid_amount"]
[1610155963627,4.00959,1182.5,1182.0,0.25859179]
[1610155963827,2.5406,1182.7,1182.0,0.25859179]
[1610155964328,2.5406,1182.7,1182.1,50.94787708]
[1610155964528,2.5406,1182.7,1182.1,50.6893]
[1610155964728,6.6938,1182.8,1182.1,50.6893]
[1610155965028,6.6938,1182.8,1182.2,0.25855506]
[1610155965228,6.6938,1182.8,1182.3,0.25852475]
[1610155965735,6.6938,1182.8,1182.5,2.8961]
[1610155965929,6.6938,1182.8,1182.7,0.25843345]
[1610155966130,6.6938,1182.8,1182.7,0.51683075]
[1610155966428,6.6938,1182.8,1182.7,4.52642075]
[1610155967231,6.6938,1182.8,1182.7,4.78478562]
[1610155967630,6.6938,1182.8,1182.7,0.77519562]
[1610155968032,6.6938,1182.8,1182.6,1.03359417]
[1610155968433,6.6938,1182.8,1182.7,0.25844819]
[1610155968834,6.6938,1182.8,1182.5,0.25850666]
[1610155969036,4.00959,1182.6,1182.2,0.25856001]
[1610155969535,4.00959,1182.6,1181.9,0.25857152]
[1610155970842,4.00959,1182.6,1182.0,0.25859643]
[1610155971036,4.00959,1182.1,1182.0,0.25859643]
[1610155971237,4.00959,1182.1,1181.9,0.25860815]
[1610155972039,4.00959,1182.1,1181.8,0.25862241]
[1610155972538,4.00959,1182.1,1181.7,0.25864295]
[1610155972738,4.00959,1182.1,1181.5,0.25867031]
[1610155973045,1.8403,1182.2,1181.5,0.25867031]
[1610155973046,4.00959,1181.6,1181.5,0.25867031]
[1610155973240,6.66399,1181.6,1181.5,0.25867031]
[1610155973444,6.66399,1181.6,1181.2,0.2587209]
[1610155973840,6.66399,1181.6,1181.1,0.25871753]
[1610155974341,2.6544,1181.6,1181.3,0.25868603]
[1610155974642,1.8403,1182.2,1181.4,10.7432]
[1610155974842,1.8403,1182.2,1181.5,0.25865078]
[1610155975141,4.00959,1182.1,1181.8,0.25861273]
[1610155975542,4.00959,1182.1,1181.9,0.25858989]
[1610155975842,4.00959,1182.1,1181.8,0.25860639]
[1610155976248,4.00959,1182.1,1181.6,0.25863274]
[1610155976644,4.00959,1182.1,1181.4,11.0018646]
[1610155976844,4.00959,1182.1,1181.4,8.9848646]
[1610155977144,2.2225,1182.2,1181.9,4.00959]
[1610155977545,2.2225,1182.2,1181.6,0.25865521]
[1610155978347,2.2225,1182.2,1181.7,0.25860796]
[1610155979348,4.00959,1181.8,1181.6,0.2586296]
[1610155980648,2.2225,1182.2,1181.6,0.2586296]
[1610155981253,2.2225,1182.2,1181.7,0.25862181]
[1610155981457,6.1598,1182.4,1181.7,0.25862181]
[1610155981660,6.1598,1182.4,1181.6,0.25864733]
[1610155981853,6.1598,1182.4,1181.5,0.25865888]
[1610155982455,36.1598,1182.4,1181.5,0.25865888]
[1610155982756,36.1598,1182.4,1181.2,0.25869929]
[1610155983153,36.1598,1182.4,1181.1,0.25875068]
[1610155983154,4.00959,1181.2,1181.1,0.25875068]
[1610155983556,4.00959,1181.2,1180.9,0.25877262]
[1610155983756,4.00959,1181.2,1180.8,0.25879211]
[1610155984756,4.00959,1181.2,1180.6,0.25889336]
[1610155985157,4.00959,1181.2,1180.5,0.51778672]
[1610155985158,4.00959,1180.7,1180.5,0.25890354]
[1610155985357,6.70179,1180.7,1180.5,0.25890354]
[1610155985960,2.6922,1180.7,1180.6,0.25887725]
[1610155986365,6.2697,1181.3,1180.6,0.51770915]
[1610155986661,6.2697,1181.3,1180.7,6.7682]
[1610155986859,6.2697,1181.3,1181.0,0.25879034]
[1610155987060,6.2697,1181.3,1181.2,0.25874319]
[1610155987761,10.27929,1181.3,1181.2,0.25874319]
[1610155988162,6.2697,1181.3,1181.1,0.25879054]
[1610155988561,6.2697,1181.3,1181.0,0.51758109]
[1610155988562,6.2697,1181.3,1180.9,0.2588207]
[1610155988763,6.2697,1181.3,1180.7,7.0270301]
[1610155989866,4.00959,1180.8,1180.7,7.0270301]
[1610155990067,4.00959,1180.8,1180.7,6.7682]
[1610155990467,4.00959,1180.8,1180.7,7.28584349]
[1610155990867,2.2299,1181.4,1180.7,7.54463038]
[1610155991071,2.2299,1181.4,1181.0,0.25878947]
[1610155991272,6.4749,1182.3,1181.0,0.25878947]
[1610155991468,6.4749,1182.3,1181.2,0.2587365]
[1610155991871,4.00959,1181.7,1181.4,0.25870606]
[1610155992068,2.2057,1182.0,1181.4,0.25870606]
[1610155992270,2.2057,1182.0,1181.5,0.25868476]
[1610155992670,2.2057,1182.0,1181.4,0.25870712]
[1610155992869,2.2057,1182.0,1181.3,0.25871644]
[1610155993472,2.2057,1182.0,1181.4,0.25867924]
[1610155993874,4.00959,1182.1,1181.9,4.00959]
[1610155994674,6.5526,1183.1,1181.9,4.00959]
[1610155994973,6.5526,1183.1,1181.9,0.2585922]
[1610155995674,6.5526,1183.1,1182.0,0.2585608]
[1610155995875,4.00959,1182.1,1181.9,0.5171216]
[1610155996377,4.00959,1182.1,1181.9,0.25859137]
[1610155996676,4.00959,1182.1,1181.8,2.5569]
[1610155997077,2.4291,1182.9,1181.8,2.81548145]
[1610155997277,2.4291,1182.9,1182.0,0.25854407]
[1610155997677,2.41315047,1182.9,1182.1,0.25850361]
[1610155997877,4.00959,1182.9,1182.8,4.00959]
[1610155998076,4.00959,1182.9,1182.1,10.92510361]
[1610155998077,4.00959,1182.9,1182.5,2.3293]
[1610155999778,2.6039,1183.2,1182.5,2.3293]
[1610155999779,4.00959,1182.6,1182.5,2.3293]
[1610155999978,4.00959,1182.6,1182.2,0.25852355]
[1610156000582,2.6039,1183.2,1182.2,0.25852355]
[1610156000781,2.663,1183.5,1182.3,0.25848082]
[1610156000983,2.663,1183.5,1182.6,61.0774]
[1610156001281,42.82424625,1184.3,1182.7,0.25843619]
[1610156001593,38.20987746,1184.4,1182.9,0.2583935]
[1610156001783,31.62582087,1184.6,1183.9,4.00959]
[1610156002185,42.94993214,1184.7,1183.1,61.88388012]
[1610156002583,42.94993214,1184.7,1183.2,0.25833655]
[1610156002783,42.94993214,1184.7,1183.2,3.03023655]
[1610156003084,42.95842092,1184.8,1183.2,3.03023655]
[1610156003886,42.95842092,1184.8,1183.9,4.00959]
[1610156004088,6.6098,1184.9,1183.9,4.00959]
[1610156005491,8.7413,1184.9,1183.7,2.1984]
[1610156005890,4.00959,1183.8,1183.7,2.1984]
[1610156006391,2.5661,1184.6,1183.7,2.1984]
[1610156006894,2.5661,1184.6,1184.4,69.3794]
[1610156007101,42.8664619,1185.1,1184.4,69.3794]
[1610156007102,42.86137853,1185.3,1184.4,69.3794]
[1610156007793,42.9501946,1185.8,1184.4,69.3794]
[1610156007993,42.97207601,1186.0,1184.4,69.63745817]
[1610156008194,46.98166601,1186.0,1185.9,4.00959]
[1610156008395,4.00959,1186.0,1185.9,4.00959]
[1610156008796,6.2838,1186.1,1185.6,70.3406]
[1610156009002,6.2838,1186.1,1185.5,2.1774]
[1610156009998,6.2838,1186.1,1185.0,2.9687]
[1610156010197,4.00959,1185.2,1185.0,2.9687]
[1610156010396,6.2838,1186.1,1185.0,2.9687]
[1610156012300,6.2838,1186.1,1186.0,4.00959]
[1610156012700,6.2838,1186.1,1185.7,67.374]
[1610156013401,6.2838,1186.1,1185.6,2.7241]
[1610156013802,36.2838,1186.1,1185.6,2.7241]
[1610156014001,36.2838,1186.1,1185.0,2.9687]
[1610156014204,6.2838,1186.1,1184.9,52.38639]
[1610156015104,6.2838,1186.1,1184.9,48.3768]
[1610156015806,6.2838,1186.1,1184.9,48.63338747]
[1610156016205,6.2838,1186.1,1184.8,0.51317495]
[1610156016206,10.29339,1186.1,1186.0,4.00959]
[1610156016406,10.29339,1186.1,1185.6,68.441]
[1610156016607,10.29339,1186.1,1185.6,2.2293]
[1610156017507,6.2838,1186.1,1185.6,10.7268]
[1610156018108,4.00959,1185.7,1185.6,10.7268]
[1610156018613,6.2838,1186.1,1185.6,2.2293]
[1610156019810,6.2838,1186.1,1185.3,2.5632]
[1610156020011,8.7762,1186.1,1185.3,2.5632]
[1610156020712,8.7762,1186.1,1185.8,4.00959]
[1610156021112,6.2838,1186.1,1185.8,4.00959]
[1610156021413,6.2838,1186.1,1185.6,2.3925]
[1610156022612,10.29339,1186.1,1186.0,4.00959]
[1610156023314,6.2838,1186.1,1186.0,6.68939]
[1610156025311,6.2838,1186.1,1186.0,2.6798]
[1610156026613,6.2838,1186.1,1185.6,2.3925]
[1610156026914,10.29339,1186.1,1185.8,4.00959]
[1610156027217,6.2838,1186.1,1185.8,4.00959]
[1610156028814,6.2838,1186.1,1186.0,4.00959]
[1610156029016,6.2838,1186.1,1186.0,13.56069]
[1610156029616,6.2838,1186.1,1186.0,9.5511]
[1610156030720,6.2838,1186.1,1186.0,13.56069]
[1610156031720,6.2838,1186.1,1186.0,9.5511]
[1610156031922,6.2838,1186.1,1186.0,1.8636]
[1610156032325,6.2838,1186.1,1185.3,2.5632]
[1610156032523,6.2838,1186.1,1185.1,66.0532]
[1610156032723,8.094,1186.1,1185.1,66.0532]
[1610156032924,8.094,1186.1,1185.5,4.00959]
[1610156033125,8.094,1186.1,1185.1,66.0532]
[1610156034828,6.2838,1186.1,1185.1,66.0532]
[1610156035025,6.2838,1186.1,1185.8,4.00959]
[1610156035826,6.2838,1186.1,1185.7,57.0542]
[1610156036427,6.2838,1186.1,1185.6,1.9441]
[1610156036927,4.00959,1185.7,1185.6,1.9441]
[1610156037128,4.00959,1185.7,1185.0,1.9254]
[1610156037527,4.00959,1185.7,1184.6,0.77204274]
[1610156037528,4.00959,1185.7,1184.6,0.2576772]
[1610156037729,4.00959,1185.7,1184.5,0.25776805]
[1610156038830,4.00959,1185.7,1184.7,0.2577144]
[1610156039128,6.2838,1186.1,1184.7,3.0417144]
[1610156039330,6.2838,1186.1,1184.9,49.6951]
[1610156040433,2.9214,1186.5,1184.9,49.95175884]
[1610156040834,2.9214,1186.5,1185.0,0.25621527]
[1610156041134,4.00959,1185.5,1185.3,4.00959]
[1610156041334,4.00959,1185.5,1185.0,1.8727]
[1610156042937,2.5991,1186.2,1185.1,4.00959]
[1610156043536,2.5991,1186.2,1185.0,1.8727]
[1610156043836,45.72074684,1186.2,1185.0,1.8727]
[1610156044039,43.12475551,1186.0,1185.0,1.8727]
[1610156044336,73.12475551,1186.0,1185.0,1.8727]
[1610156044536,43.13018438,1185.9,1184.7,2.784]
[1610156044738,43.13018438,1185.9,1184.3,2.3907202]
[1610156044739,43.13395143,1185.8,1184.3,2.1333]
[1610156045038,34.66477618,1185.7,1184.1,67.4170273]
[1610156045236,30.0,1185.6,1184.1,67.4170273]
[1610156045538,4.00959,1184.2,1184.1,67.1593]
[1610156045937,4.00959,1184.2,1183.8,0.25821847]
[1610156046136,2.6578,1184.9,1183.7,0.25823182]
[1610156046436,2.6578,1184.9,1183.7,2.80573182]
[1610156047037,2.6578,1184.9,1183.8,67.8723]
[1610156047242,2.6578,1184.9,1183.8,68.13053063]
[1610156047541,2.6578,1184.9,1184.8,4.00959]
[1610156047739,45.15380324,1185.6,1184.4,2.9572]
[1610156047942,2.0282,1185.6,1184.4,2.9572]
[1610156048741,45.16958183,1185.6,1184.4,2.9572]
[1610156049042,43.14199834,1185.5,1184.4,2.9572]
[1610156049241,43.14199834,1185.5,1184.1,1.8604]
[1610156049642,43.14199834,1185.5,1184.7,4.00959]
[1610156049842,45.16887523,1185.6,1184.7,4.00959]
[1610156050043,2.0282,1185.6,1184.1,2.11835486]
[1610156050642,43.13821523,1185.7,1184.1,2.11835486]
[1610156051042,73.13821523,1185.7,1184.1,2.11835486]
[1610156051443,43.10229878,1185.5,1183.9,0.25822909]
[1610156051644,4.00959,1184.0,1183.9,0.25822909]
[1610156051847,4.00959,1184.0,1183.7,4.26784357]
[1610156052244,4.00959,1184.0,1183.6,0.2582698]
[1610156052546,4.00959,1184.0,1183.5,0.2582855]
[1610156053047,4.00959,1184.0,1183.4,0.25829077]
[1610156053245,6.67059,1184.0,1183.4,0.25829077]
[1610156053545,4.00959,1183.5,1183.3,0.25834481]
[1610156054446,4.00959,1183.5,1183.2,0.2583709]
[1610156055149,2.661,1184.0,1183.0,0.25841869]
[1610156055649,4.00959,1183.1,1183.0,0.25841869]
[1610156056047,4.00959,1183.1,1182.9,0.25842951]
[1610156056448,2.271,1183.7,1183.0,0.25842787]
[1610156056850,2.661,1184.0,1183.0,0.25842787]
[1610156057050,2.661,1184.0,1183.1,0.25839962]
[1610156057251,2.661,1184.0,1183.1,2.36779962]
[1610156057652,4.00959,1183.2,1183.1,2.36779962]
[1610156059153,4.00959,1183.2,1183.1,2.1094]
[1610156059853,4.00959,1183.2,1182.8,0.25843891]
[1610156060055,1.8265,1183.2,1182.8,0.25843891]
[1610156060258,1.8265,1183.2,1182.7,0.25848448]
[1610156060656,1.8265,1183.2,1182.5,0.25851353]
[1610156060856,1.8265,1183.2,1182.4,0.25852582]
[1610156061756,1.8265,1183.2,1182.7,4.00959]
[1610156061757,4.00959,1183.1,1182.7,4.00959]
[1610156062161,4.00959,1183.1,1182.7,4.26804768]
[1610156062658,6.6645,1184.2,1182.8,0.25843357]
[1610156062862,6.6645,1184.2,1182.9,0.25843099]
[1610156063159,36.6645,1184.2,1182.9,0.25843099]
[1610156063560,4.00959,1183.0,1182.9,0.25843099]
[1610156063761,4.00959,1183.0,1182.8,0.25846168]
[1610156064260,4.00959,1183.0,1182.6,0.2584709]
[1610156064862,4.00959,1183.0,1182.4,0.25851406]
[1610156065263,4.00959,1183.0,1182.3,0.25854604]
[1610156065565,4.00959,1182.4,1182.3,0.25854604]
[1610156065964,4.00959,1182.4,1182.2,0.25858562]
[1610156066167,4.00959,1182.4,1182.1,0.25860516]
[1610156066668,4.00959,1182.4,1182.0,0.25862689]
[1610156066871,34.00959,1182.4,1181.9,0.25863581]
[1610156067066,30.0,1182.4,1181.9,0.25863581]
[1610156067267,32.7015,1182.4,1181.8,0.25865314]
[1610156067670,2.7015,1182.4,1181.7,0.25867692]
[1610156067869,2.7015,1182.4,1181.6,0.25869041]
[1610156068369,2.7015,1182.4,1181.5,0.25872071]
[1610156068370,4.00959,1181.7,1181.5,0.25872071]
[1610156068769,4.00959,1181.7,1181.4,0.25872254]
[1610156069170,1.8915,1181.9,1181.4,0.25872254]
[1610156069369,1.8915,1181.9,1181.4,64.04422254]
[1610156069573,2.8257,1182.7,1181.8,0.25865974]
[1610156069871,2.8257,1182.7,1181.9,8.12603911]
[1610156070069,2.9035,1183.1,1181.9,8.12603911]
[1610156070269,4.00959,1182.4,1182.2,4.00959]
[1610156070872,4.00959,1182.4,1182.1,0.25858854]
[1610156071073,4.00959,1182.4,1182.2,0.25858061]
[1610156071273,4.00959,1182.4,1182.0,0.25862627]
[1610156071679,4.00959,1182.4,1181.8,0.25865551]
[1610156072074,4.00959,1182.4,1181.6,0.25867673]
[1610156072274,4.00959,1181.7,1181.6,0.25867673]
[1610156072974,4.00959,1181.7,1181.5,0.25870323]
[1610156073680,4.00959,1181.7,1181.6,0.25868656]
[1610156075377,2.0022,1182.2,1181.6,0.25868656]
[1610156075878,2.1949,1182.5,1181.7,0.25868496]
[1610156076078,2.1949,1182.5,1181.7,2.95478496]
[1610156076281,6.5073,1183.3,1181.9,0.25863641]
[1610156076680,22.10988346,1183.7,1181.9,0.25863641]
[1610156076681,42.43695758,1183.7,1182.1,0.25860691]
[1610156076880,31.27664215,1183.8,1182.2,0.25857715]
[1610156077083,6.3488,1183.7,1182.2,0.25857715]
[1610156077284,8.9891,1183.7,1182.4,0.25855422]
[1610156077487,8.9891,1183.7,1182.4,2.51045422]
[1610156077884,8.9891,1183.7,1182.5,0.25851334]
[1610156078283,4.00959,1182.6,1182.5,0.25851334]
[1610156078688,8.9891,1183.7,1182.5,0.25851334]
[1610156078986,8.9891,1183.7,1182.4,2.51042948]
[1610156079686,8.9891,1183.7,1182.4,2.2519]
[1610156080193,38.9891,1183.7,1182.4,2.2519]
[1610156080892,38.9891,1183.7,1182.1,0.25860228]
[1610156080893,4.00959,1182.5,1182.1,0.25860228]
[1610156081092,4.00959,1182.5,1182.0,0.25863898]
[1610156081493,4.00959,1182.5,1181.8,0.51727796]
[1610156081494,4.00959,1182.5,1181.8,0.25866952]
[1610156081889,4.00959,1182.5,1181.6,0.25869306]
[1610156082093,4.00959,1182.5,1181.7,0.25867697]
[1610156082591,4.00959,1182.5,1181.8,0.25865192]
[1610156082991,4.00959,1182.5,1182.0,0.25863063]
[1610156083192,4.00959,1182.5,1182.1,0.2586062]
[1610156084194,4.00959,1182.5,1182.0,2.21421375]
[1610156084593,4.00959,1182.5,1182.0,1.9556]
[1610156084992,4.00959,1182.1,1182.0,1.9556]
[1610156086398,2.8579,1182.9,1182.0,2.21422591]
[1610156086602,2.8579,1182.9,1182.1,0.2586023]
[1610156087104,2.8579,1182.9,1182.0,3.76556294]
[1610156087105,9.2342,1183.7,1182.2,0.2585829]
[1610156087300,4.00959,1182.7,1182.5,4.00959]
[1610156087700,9.2342,1183.7,1182.5,6.36669555]
[1610156087902,9.2342,1183.7,1182.5,2.35710555]
[1610156088101,9.2342,1183.7,1182.6,0.25851319]
[1610156088401,9.2342,1183.7,1182.5,2.35713171]
[1610156088803,9.2342,1183.7,1182.5,2.0986]
[1610156089402,4.00959,1182.6,1182.5,2.0986]
[1610156089601,4.00959,1182.6,1182.2,0.25856997]
[1610156089804,4.00959,1182.6,1182.0,1.9556]
[1610156090101,4.00959,1182.6,1181.8,0.25864732]
[1610156090402,6.63459,1182.6,1181.8,0.25864732]
[1610156090801,6.63459,1182.6,1181.7,3.11147904]
[1610156091201,6.63459,1182.6,1181.7,2.8528]
[1610156091405,4.00959,1181.8,1181.6,0.25869669]
[1610156093702,4.00959,1181.8,1181.7,0.25866593]
[1610156093903,2.625,1182.6,1181.7,0.25866593]
[1610156094202,2.625,1182.6,1181.7,3.10148001]
[1610156094603,2.625,1182.6,1181.7,2.84286428]
[1610156095004,2.625,1182.6,1181.7,2.5842]
[1610156095403,4.00959,1181.8,1181.5,0.25869074]
[1610156096004,4.00959,1181.8,1181.4,2.75400335]
[1610156096203,4.00959,1181.8,1181.4,0.25870335]
[1610156096705,4.00959,1181.8,1181.3,0.51738148]
[1610156096706,4.00959,1181.8,1181.3,0.25873176]
[1610156097006,4.00959,1181.8,1181.4,0.25871465]
[1610156097203,4.00959,1181.8,1181.4,2.70361465]
[1610156097404,4.00959,1181.8,1181.7,4.00959]
[1610156097603,4.00959,1181.8,1181.7,6.17449]
[1610156097804,4.00959,1181.8,1181.7,6.691789]
[1610156098211,4.00959,1181.8,1181.7,2.682199]
[1610156098911,4.00959,1181.8,1181.7,2.4235835]
[1610156099209,4.00959,1181.8,1181.6,0.25869597]
[1610156099508,4.00959,1181.8,1181.7,1.29322589]
[1610156100809,4.00959,1181.8,1181.6,1.55176198]
[1610156101009,4.00959,1181.8,1181.7,0.25867807]
[1610156101310,4.00959,1181.8,1181.7,3.0903173]
[1610156101913,4.00959,1181.8,1181.7,2.83167578]
[1610156102112,4.00959,1181.8,1181.7,4.12477619]
[1610156102314,4.00959,1181.8,1181.7,3.86610041]
[1610156102716,34.00959,1181.8,1181.7,1.29310041]
[1610156103214,4.00959,1181.8,1181.7,1.29310041]
[1610156103417,34.00959,1181.8,1181.7,1.29310041]
[1610156103616,53.832,1181.5,1181.4,1.29405734]
[1610156103817,56.5277,1181.5,1181.4,1.29405734]
[1610156104319,2.6957,1181.5,1181.4,1.29405734]
[1610156105220,2.6957,1181.5,1180.9,1.29416378]
[1610156105421,4.00959,1181.1,1180.9,1.29416378]
[1610156105822,2.6957,1181.5,1180.9,1.55300671]
[1610156106022,2.2309,1181.8,1180.9,1.55300671]
[1610156106223,2.2309,1181.8,1181.1,0.25881214]
[1610156106922,2.2309,1181.8,1181.2,0.25880327]
[1610156107122,2.2309,1181.8,1181.1,0.25879458]
[1610156107725,4.00959,1181.2,1181.1,0.25879458]
[1610156108022,2.2309,1181.8,1181.0,0.25883111]
[1610156108524,2.2309,1181.8,1180.9,2.58376476]
[1610156108823,2.2309,1181.8,1180.9,2.3249]
[1610156109623,4.00959,1181.0,1180.9,2.3249]
[1610156110225,4.00959,1181.0,1180.9,2.5837571]
[1610156110635,4.00959,1181.0,1180.9,3.87769806]
[1610156112129,4.00959,1181.0,1180.9,3.61884096]
[1610156112428,2.328,1181.5,1180.9,3.61884096]
[1610156113432,2.328,1181.5,1180.9,2.3249]
[1610156113631,2.328,1181.5,1181.0,0.25883421]
[1610156113836,4.00959,1181.5,1181.3,4.00959]
[1610156114234,4.00959,1181.5,1181.4,0.25874894]
[1610156115133,67.2322,1182.2,1181.4,0.25874894]
[1610156115335,67.2322,1182.2,1181.2,2.12226876]
[1610156115833,4.00959,1181.3,1181.2,1.8635]
[1610156116036,4.00959,1181.3,1181.2,0.25878731]
[1610156116937,1.9968,1181.9,1181.2,0.25878731]
[1610156117233,67.2322,1182.2,1181.2,2.4719108]
[1610156117532,67.2322,1182.2,1181.2,3.7654304]
[1610156117733,67.2322,1182.2,1181.3,0.2587594]
[1610156117934,4.00959,1181.4,1181.2,3.50670542]
[1610156118940,4.00959,1181.4,1181.3,1.29390682]
[1610156119635,2.6603,1181.9,1181.3,1.29390682]
[1610156120136,2.6603,1181.9,1181.4,0.25877006]
[1610156120335,6.2467,1182.8,1181.4,2.89897006]
[1610156120536,2.1591,1182.9,1181.6,0.2587005]
[1610156120740,30.97505158,1183.2,1181.6,0.2587005]
[1610156120939,13.81933742,1183.3,1181.6,0.2587005]
[1610156120940,6.5575,1183.0,1181.8,0.25867626]
[1610156121139,8.5042,1183.0,1181.8,0.25867626]
[1610156121436,4.00959,1182.2,1182.0,4.00959]
[1610156123036,4.00959,1182.2,1182.1,1.29296477]
[1610156123238,8.5042,1183.0,1182.1,1.29296477]
[1610156123436,1.9467,1183.0,1182.1,1.29296477]
[1610156123937,4.00959,1182.2,1182.1,5.30255477]
[1610156124136,1.9467,1183.0,1182.1,5.30255477]
[1610156124338,1.9467,1183.0,1182.1,1.29296477]
[1610156124537,1.9467,1183.0,1182.1,1.55156584]
[1610156124839,2.741,1183.3,1182.2,0.2585831]
[1610156125037,37.74141558,1183.8,1182.2,0.2585831]
[1610156125237,6.6193,1183.8,1182.3,2.10065876]
[1610156125638,6.6193,1183.8,1182.4,0.25854426]
[1610156125843,4.00959,1182.7,1182.5,4.00959]
[1610156126543,2.4178,1183.7,1182.5,4.00959]
[1610156126943,2.4178,1183.7,1183.0,55.0657]
[1610156127142,2.4178,1183.7,1183.0,56.9105]
[1610156127344,42.43615678,1184.7,1183.1,0.2584175]
[1610156127543,31.2622105,1184.9,1183.3,0.25836751]
[1610156127948,4.00959,1184.3,1184.1,4.00959]
[1610156129146,4.00959,1184.3,1183.5,0.25833958]
[1610156129346,4.00959,1184.3,1183.6,0.25833325]
[1610156129546,4.00959,1184.3,1183.6,2.5741]
[1610156129951,2.9776,1184.8,1183.9,4.00959]
[1610156130249,2.9776,1184.8,1183.9,1.9506]
[1610156131249,45.41380743,1184.8,1183.9,1.9506]
[1610156131449,45.41380743,1184.8,1183.6,2.5741]
[1610156131853,4.00959,1183.7,1183.6,2.5741]
[1610156132251,2.3242,1184.4,1183.6,2.5741]
[1610156132652,2.3242,1184.4,1183.8,55.5771]
[1610156133356,2.9776,1184.8,1183.8,55.5771]
[1610156133653,51.55444657,1185.1,1183.8,55.5771]
[1610156133854,51.55444657,1185.1,1183.8,59.58669]
[1610156134054,9.1366,1185.1,1183.8,59.58669]
[1610156134462,9.1366,1185.1,1183.8,55.5771]
[1610156134756,51.53664075,1185.1,1183.8,55.5771]
[1610156135156,42.40121685,1185.0,1183.8,55.5771]
[1610156135557,31.23124937,1185.0,1183.8,55.5771]
[1610156135957,4.00959,1184.2,1183.8,59.58669]
[1610156136457,51.5633926,1185.1,1183.8,59.58669]
[1610156137357,40.38922988,1185.1,1183.8,59.58669]
[1610156137559,9.1366,1185.1,1183.8,59.58669]
[1610156138057,9.1366,1185.1,1183.8,55.83535709]
[1610156138058,4.00959,1184.6,1183.8,55.83535709]
[1610156138657,4.00959,1184.6,1183.8,55.5771]
[1610156140063,9.1366,1185.1,1184.4,4.00959]
[1610156140261,9.1366,1185.1,1184.2,2.1739]
[1610156141061,39.1366,1185.1,1184.2,2.1739]
[1610156141463,39.1366,1185.1,1183.8,55.5771]
[1610156141962,4.00959,1183.9,1183.8,55.5771]
[1610156142162,4.00959,1183.9,1183.7,4.00959]
[1610156142566,2.0859,1184.7,1183.7,4.00959]
[1610156142763,2.0859,1184.7,1183.9,61.7692]
[1610156142964,2.0859,1184.7,1183.9,63.8296]
[1610156143466,19.98201639,1185.4,1183.9,63.8296]
[1610156143467,6.6939,1185.4,1183.9,63.8296]
[1610156143665,6.6939,1185.4,1183.9,64.08783124]
[1610156143968,6.6939,1185.4,1184.4,4.00959]
[1610156144667,6.6939,1185.4,1184.3,2.8031]
[1610156144866,8.9404,1185.4,1184.3,2.8031]
[1610156145967,4.00959,1184.4,1184.3,2.8031]
[1610156146369,4.00959,1184.4,1183.9,67.83919]
[1610156146571,4.00959,1184.4,1183.9,6.06999]
[1610156146971,4.00959,1184.4,1183.9,2.0604]
[1610156147773,4.00959,1184.4,1183.5,61.40208475]
[1610156147975,4.00959,1183.8,1183.7,4.00959]
[1610156148173,2.7288,1184.6,1183.7,4.00959]
[1610156148574,2.7288,1184.6,1183.7,6.04259]
[1610156149073,1.981,1185.0,1183.7,6.04259]
[1610156149274,1.981,1185.0,1183.7,6.30084802]
[1610156149874,1.981,1185.0,1183.8,0.25824489]
[1610156150080,4.00959,1184.6,1184.3,4.00959]
[1610156150875,4.00959,1184.6,1184.0,48.9587]
[1610156152076,4.00959,1184.1,1184.0,48.9587]
[1610156152777,4.00959,1184.1,1183.7,6.04259]
[1610156153176,4.00959,1184.1,1183.7,2.033]
[1610156153578,32.4468,1184.7,1183.4,66.705]
[1610156153876,75.38295679,1184.7,1183.4,66.705]
[1610156154077,4.00959,1183.5,1183.4,66.705]
[1610156154577,2.0605,1184.4,1183.4,66.705]
[1610156155378,32.0605,1184.4,1183.4,66.705]
[1610156155778,32.0605,1184.4,1183.3,1.8878]
[1610156155978,4.00959,1183.4,1183.0,2.8015]
[1610156156679,4.00959,1183.4,1182.7,59.3635]
[1610156157178,4.00959,1183.4,1182.7,59.62196483]
[1610156157781,4.00959,1183.4,1182.7,59.3635]
[1610156158078,4.00959,1182.8,1182.7,59.3635]
[1610156158480,4.00959,1182.8,1182.5,4.26808759]
[1610156159182,4.00959,1182.8,1182.6,0.25848414]
[1610156160484,4.00959,1182.8,1182.7,0.25847381]
[1610156160783,4.00959,1182.8,1182.6,0.25847416]
[1610156161782,4.00959,1182.8,1182.7,0.25848893]
[1610156161982,4.00959,1182.8,1182.6,0.2585047]
[1610156162884,4.00959,1182.8,1182.4,0.2585564]
[1610156163090,4.00959,1182.8,1182.3,56.1529]
[1610156163484,4.00959,1182.8,1182.2,0.25856909]
[1610156163884,4.00959,1182.8,1182.1,0.25860883]
[1610156164084,4.00959,1182.2,1182.1,0.25860883]
[1610156164284,4.00959,1182.2,1181.8,69.4133265]
[1610156164285,4.00959,1182.2,1182.0,0.2586267]
[1610156164589,4.00959,1182.2,1181.8,69.15475339]
[1610156164590,4.00959,1182.2,1181.9,0.25863439]
[1610156165285,4.00959,1182.2,1181.8,0.25865364]
[1610156166086,4.00959,1181.9,1181.8,0.25865364]
[1610156166286,4.00959,1181.9,1181.7,0.25866691]
[1610156166689,4.00959,1181.9,1181.6,0.51733381]
[1610156166690,4.00959,1181.9,1181.8,0.2586519]
[1610156167188,4.00959,1181.9,1181.8,1.55156234]
[1610156167687,4.00959,1181.9,1181.8,1.81018392]
[1610156168688,4.00959,1181.9,1181.8,0.51727348]
[1610156169089,4.00959,1181.9,1181.8,0.2586458]
[1610156169689,4.00959,1181.9,1181.7,0.5172916]
[1610156169889,4.00959,1181.9,1181.8,0.25863876]
[1610156170088,2.1569,1182.9,1181.8,68.51683876]
[1610156170290,30.0,1183.4,1181.8,68.2582]
[1610156170592,6.5678,1183.3,1182.0,0.25862969]
[1610156170989,2.4145,1183.5,1182.1,8.55570389]
[1610156171193,42.92245584,1183.7,1182.1,0.25860389]
[1610156171393,6.6753,1183.7,1182.3,56.4701]
[1610156171593,6.6753,1183.7,1182.3,58.3782]
[1610156171793,6.6753,1183.7,1182.3,58.63674215]
[1610156171992,43.05374482,1183.9,1182.3,58.63674215]